bitfinex-derivatives/quotes_ETHF0:USTF0_20230402
["timestamp","ask_amount","ask_price","bid_price","bid_amount"]
[1680457542624,4.21388953,1802.5,1802.1,1.67850211]
[1680457543428,0.8722825,1802.4,1802.2,0.57550211]
[1680457543919,0.8722825,1802.4,1802.3,1.11]
[1680457544121,1.00608953,1802.5,1802.3,2.11]
[1680457544326,0.13380703,1802.5,1802.3,2.68550211]
[1680457544626,0.13380703,1802.5,1802.3,1.68550211]
[1680457544818,0.8722825,1802.6,1802.3,1.68550211]
[1680457544819,0.8722825,1802.6,1802.4,0.06615388]
[1680457545125,0.8722825,1802.6,1802.3,1.68550211]
[1680457545432,0.8722825,1802.5,1802.3,1.68550211]
[1680457550924,0.8722825,1802.6,1802.3,2.55041982]
[1680457552037,0.8722825,1802.6,1802.4,1.68550211]
[1680457552238,0.8722825,1802.6,1802.4,1.11]
[1680457552730,0.8722825,1802.6,1802.4,1.68550211]
[1680457553838,0.8722825,1802.6,1802.4,1.11]
[1680457554140,0.8722825,1802.6,1802.4,1.68550211]
[1680457555136,0.8722825,1802.6,1802.5,0.10426776]
[1680457560048,1.42754132,1802.7,1802.5,0.10426776]
[1680457560234,0.8722825,1802.7,1802.6,1.099]
[1680457562248,0.8722825,1802.7,1802.5,0.93626776]
[1680457562744,0.8722825,1802.7,1802.5,1.51176987]
[1680457562943,0.8722825,1802.7,1802.5,0.93626776]
[1680457563144,0.8722825,1802.7,1802.5,1.51176987]
[1680457563347,0.8722825,1802.7,1802.5,0.93626776]
[1680457568153,0.8722825,1802.8,1802.5,0.93626776]
[1680457568346,1.8722825,1802.8,1802.5,0.93626776]
[1680457568754,0.8722825,1802.7,1802.5,0.93626776]
[1680457572057,0.8722825,1802.7,1802.6,0.83]
[1680457572248,0.8722825,1802.7,1802.6,0.93049083]
[1680457581851,0.83,1802.7,1802.6,0.10049083]
[1680457582051,3.2078,1802.7,1802.6,0.10049083]
[1680457582862,4.37084333,1802.7,1802.6,0.10049083]
[1680457596065,4.37084333,1802.7,1802.6,0.67599294]
[1680457596568,4.37084333,1802.7,1802.6,0.10049083]
[1680457596770,4.37084333,1802.7,1802.6,0.67599294]
[1680457598069,4.91593705,1802.7,1802.6,0.67599294]
[1680457599170,4.37084333,1802.7,1802.6,0.67599294]
[1680457603767,4.37084333,1802.7,1802.6,0.66917751]
[1680457606066,4.37218303,1802.7,1802.6,0.66917751]
[1680457606775,3.2078,1802.7,1802.6,0.66917751]
[1680457606972,4.37218583,1802.7,1802.6,0.66917751]
[1680457609670,4.37218583,1802.7,1802.6,1.53409522]
[1680457613977,4.37218583,1802.7,1802.6,0.66917751]
[1680457614978,3.2078,1802.7,1802.6,0.66917751]
[1680457615175,4.37217113,1802.7,1802.6,0.66917751]
[1680457615477,3.2078,1802.7,1802.6,0.66917751]
[1680457634289,4.0398,1802.7,1802.6,0.66917751]
[1680457635387,5.492737,1802.7,1802.6,0.66917751]
[1680457635592,4.0398,1802.7,1802.6,0.66917751]
[1680457635788,5.492737,1802.7,1802.6,0.66917751]
[1680457637690,5.492737,1802.7,1802.6,0.0936754]
[1680457637691,6.1806532,1802.7,1802.6,0.0936754]
[1680457637890,6.22418711,1802.7,1802.5,0.57550211]
[1680457638097,1.99049474,1802.6,1802.5,0.57550211]
[1680457638294,2.99049474,1802.6,1802.5,0.57550211]
[1680457641194,2.99049474,1802.6,1802.4,0.57550211]
[1680457641195,3.96690347,1802.6,1802.4,0.57550211]
[1680457641399,5.49511027,1802.5,1802.4,0.57550211]
[1680457643000,6.6587523,1802.5,1802.3,1.44041982]
[1680457643202,5.20344203,1802.5,1802.3,0.57550211]
[1680457644000,0.87272953,1802.4,1802.3,1.40750211]
[1680457644397,0.87272953,1802.4,1802.3,1.69691771]
[1680457645200,0.91536128,1802.4,1802.3,1.69691771]
[1680457646908,1.49700309,1802.4,1802.3,1.69691771]
[1680457647609,0.62427356,1802.4,1802.3,1.69691771]
[1680457665038,0.62427356,1802.4,1802.3,3.52891771]
[1680457665224,0.04263175,1802.4,1802.3,3.82446238]
[1680457665732,0.04263175,1802.4,1802.3,7.03226238]
[1680457666132,0.04263175,1802.4,1802.3,6.03226238]
[1680457669333,0.04263175,1802.4,1802.3,7.86426238]
[1680457669529,0.58164181,1802.6,1802.4,1.0]
[1680457669736,0.58164181,1802.6,1802.5,5.72925475]
[1680457669941,0.58164181,1802.6,1802.5,6.72925475]
[1680457670244,0.58164181,1802.6,1802.5,5.72925475]
[1680457671039,0.58164181,1802.6,1802.5,4.8638]
[1680457671241,1.45437134,1802.7,1802.5,5.72918611]
[1680457671543,1.45437134,1802.7,1802.6,2.40892419]
[1680457671940,1.45437134,1802.7,1802.6,1.40892419]
[1680457673341,0.58164181,1802.7,1802.6,1.69738611]
[1680457676438,0.87272953,1802.8,1802.6,1.69738611]
[1680457676439,0.58164181,1802.8,1802.7,0.832]
[1680457676639,0.58164181,1802.8,1802.7,1.664]
[1680457677245,0.58164181,1802.8,1802.7,1.80588805]
[1680457677443,1.45437134,1802.8,1802.7,1.80588805]
[1680457677640,0.58164181,1802.8,1802.7,1.80588805]
[1680457678248,0.58164181,1802.8,1802.7,0.97388805]
[1680457678744,0.58164181,1802.8,1802.7,3.38247713]
[1680457679043,0.58164181,1802.9,1802.7,4.24786324]
[1680457679236,0.58164181,1802.9,1802.8,1.832]
[1680457679439,0.58164181,1802.9,1802.8,0.832]
[1680457679846,0.58164181,1802.9,1802.8,1.40858908]
[1680457680450,1.45437134,1803.0,1802.8,1.40858908]
[1680457680744,1.45437134,1803.0,1802.9,0.832]
[1680457680940,0.58164181,1803.0,1802.9,0.832]
[1680457681338,0.58164181,1803.0,1802.9,4.0398]
[1680457682746,0.58164181,1803.1,1802.9,5.44838908]
[1680457682949,0.58164181,1803.2,1803.0,2.23258908]
[1680457683149,0.58164181,1803.2,1803.1,0.83]
[1680457685347,0.58164181,1803.3,1803.1,0.83]
[1680457685643,0.58164181,1803.3,1803.2,0.825]
[1680457687447,4.34247104,1803.4,1803.2,0.825]
[1680457690258,4.34247104,1803.4,1803.3,0.23564451]
[1680457691757,3.76082923,1803.4,1803.3,0.23564451]
[1680457693259,0.55302923,1803.4,1803.3,1.06564451]
[1680457693560,0.58164181,1803.6,1803.3,1.06564451]
[1680457693756,0.58164181,1803.6,1803.5,0.832]
[1680457694361,1.14312021,1803.6,1803.5,0.832]
[1680457696368,0.5614784,1803.6,1803.5,0.832]
[1680457696565,0.58164181,1803.7,1803.5,0.832]
[1680457697166,1.1320328,1803.7,1803.5,0.832]
[1680457698570,0.55039099,1803.7,1803.6,0.832]
[1680457698872,0.58164181,1803.9,1803.6,0.832]
[1680457699061,0.58164181,1803.9,1803.7,0.832]
[1680457699661,1.12365011,1803.9,1803.7,0.832]
[1680457699864,0.5420083,1803.9,1803.7,0.832]
[1680457700073,0.58164181,1803.9,1803.7,0.832]
[1680457700371,3.2078,1803.8,1803.7,0.832]
[1680457702072,3.2078,1803.8,1803.6,0.832]
[1680457702670,1.0,1803.7,1803.5,0.832]
[1680457704285,3.2078,1803.6,1803.5,0.832]
[1680457705174,0.58164181,1803.6,1803.5,1.25140756]
[1680457705378,6.20044203,1803.8,1803.5,1.25140756]
[1680457705379,5.61844181,1803.8,1803.5,1.25140756]
[1680457706382,3.2078,1803.6,1803.5,1.25140756]
[1680457708285,3.2078,1803.6,1803.5,1.25040756]
[1680457712090,3.2078,1803.6,1803.5,1.24740756]
[1680457713397,3.2078,1803.7,1803.5,1.24740756]
[1680457715093,3.78944181,1803.7,1803.5,1.24740756]
[1680457719493,1.0,1803.6,1803.5,1.24740756]
[1680457719691,1.0,1803.6,1803.5,0.41940756]
[1680457719895,1.0,1803.6,1803.3,4.0358]
[1680457720096,4.61244181,1803.7,1803.4,0.41927889]
[1680457720496,4.61244181,1803.7,1803.3,4.0358]
[1680457721499,3.78944181,1803.7,1803.5,0.828]
[1680457721998,0.58164181,1803.8,1803.5,0.828]
[1680457722194,0.58164181,1803.8,1803.6,0.831]
[1680457722392,0.58164181,1803.7,1803.6,0.831]
[1680457723099,0.58164181,1803.8,1803.6,0.831]
[1680457723396,1.45437134,1803.8,1803.6,0.831]
[1680457723900,0.58164181,1803.8,1803.6,0.831]
[1680457724387,0.58164181,1803.7,1803.6,0.831]
[1680457724589,1.45437134,1803.8,1803.6,0.831]
[1680457725099,0.58164181,1803.7,1803.6,0.831]
[1680457726394,1.45437134,1803.8,1803.6,0.831]
[1680457727094,0.58164181,1803.7,1803.6,0.831]
[1680457734704,0.58164181,1803.8,1803.6,2.40758908]
[1680457735000,0.58164181,1803.9,1803.7,7.31077519]
[1680457735209,0.58164181,1803.9,1803.8,1.40758908]
[1680457735403,0.58164181,1803.9,1803.8,0.831]
[1680457735908,2.45437134,1803.9,1803.8,0.831]
[1680457736207,1.87272953,1803.9,1803.8,0.831]
[1680457736809,1.87272953,1803.9,1803.7,1.09693213]
[1680457737103,0.58075994,1803.8,1803.7,1.09693213]
[1680457738009,0.58075994,1803.8,1803.7,0.52034305]
[1680457738207,0.58075994,1803.8,1803.6,2.27297519]
[1680457738413,0.58075994,1803.8,1803.7,0.57658908]
[1680457740608,1.45348947,1803.8,1803.7,0.57658908]
[1680457742011,1.45348947,1803.8,1803.7,1.40758908]
[1680457742509,0.58075994,1803.8,1803.7,1.40758908]
[1680457743413,0.87272953,1803.8,1803.7,1.40758908]
[1680457743614,4.08052953,1803.8,1803.6,1.44197519]
[1680457743818,0.58099595,1803.7,1803.6,0.57658908]
[1680457744008,1.58099595,1803.7,1803.6,0.57658908]
[1680457744313,0.58099595,1803.7,1803.6,0.57658908]
[1680457745111,1.58099595,1803.7,1803.6,0.57658908]
[1680457745816,0.57728826,1803.7,1803.6,0.57658908]
[1680457746014,1.57728826,1803.7,1803.6,0.57658908]
[1680457746615,0.57728826,1803.7,1803.6,0.57658908]
[1680457747113,1.87272953,1803.7,1803.5,2.26597519]
[1680457747304,1.87272953,1803.7,1803.5,1.40058908]
[1680457748612,0.87272953,1803.7,1803.5,1.40058908]
[1680457749614,0.87272953,1803.6,1803.5,1.40058908]
[1680457750114,0.87272953,1803.6,1803.5,1.67192325]
[1680457750417,0.87272953,1803.7,1803.5,2.53730936]
[1680457751615,0.87272953,1803.7,1803.6,0.57658908]
[1680457757419,1.87272953,1803.7,1803.5,1.71330936]
[1680457757723,1.87272953,1803.7,1803.6,0.57658908]
[1680457758013,1.0,1803.7,1803.5,0.84792325]
[1680457758219,4.07957136,1803.6,1803.5,0.84792325]
[1680457764322,4.07957136,1803.6,1803.5,1.71330936]
[1680457765215,4.07957136,1803.6,1803.5,1.58933745]
[1680457765925,4.07957136,1803.6,1803.5,0.72395134]
[1680457766424,4.07957136,1803.6,1803.5,1.58933745]
[1680457766927,0.87177136,1803.6,1803.5,1.01274837]
[1680457777037,0.87177136,1803.6,1803.5,1.5892839]
[1680457777240,1.16364203,1803.7,1803.5,0.72389779]
[1680457777936,4.37144203,1803.6,1803.5,0.72389779]
[1680457778434,3.2078,1803.6,1803.5,0.72389779]
[1680457780438,4.07995569,1803.6,1803.5,0.82354888]
[1680457783350,4.37144203,1803.6,1803.5,1.68893499]
[1680457785050,3.2078,1803.6,1803.5,1.11239946]
[1680457785351,3.2078,1803.6,1803.5,1.68918558]
[1680457786547,4.08019986,1803.6,1803.5,1.11239946]
[1680457787148,3.2078,1803.6,1803.5,1.11239946]
[1680457788050,3.2078,1803.6,1803.5,1.68929587]
[1680457789759,3.2078,1803.6,1803.5,1.11239946]
[1680457790052,4.08020438,1803.6,1803.5,1.11239946]
[1680457790850,3.2078,1803.6,1803.5,1.11239946]
[1680457799459,4.37144203,1803.6,1803.5,1.11239946]
[1680457801268,3.2078,1803.6,1803.5,1.11239946]
[1680457801767,4.37144203,1803.6,1803.5,1.11239946]
[1680457805874,5.20244203,1803.6,1803.5,1.11239946]
[1680457806169,5.20244203,1803.6,1803.5,0.82414825]
[1680457806367,5.20245549,1803.6,1803.5,0.66302233]
[1680457807363,5.0388,1803.6,1803.5,0.66302233]
[1680457807569,8.00768106,1803.6,1803.5,0.08588743]
[1680457807973,8.00768106,1803.6,1803.4,0.5771349]
[1680457808162,2.99470566,1803.5,1803.4,0.5771349]
[1680457808362,3.28631027,1803.5,1803.3,0.5771349]
[1680457808567,6.2021048,1803.4,1803.3,0.5771349]
[1680457811169,6.2021048,1803.4,1803.2,0.5771349]
[1680457811475,1.8720181,1803.3,1803.2,0.5771349]
[1680457812066,2.7000181,1803.3,1803.2,0.5771349]
[1680457813379,2.7000181,1803.3,1803.1,1.44252101]
[1680457815081,2.7000181,1803.3,1803.1,0.5771349]
[1680457817680,1.0,1803.2,1803.1,0.5771349]
[1680457817880,1.831,1803.2,1803.1,0.5771349]
[1680457818274,1.87645612,1803.2,1803.0,0.5771349]
[1680457818477,0.827,1803.1,1803.0,0.5771349]
[1680457821381,0.86566124,1803.1,1803.0,0.5771349]
[1680457822183,0.03866124,1803.1,1803.0,0.5771349]
[1680457823787,0.03866124,1803.1,1802.9,0.5771349]
[1680457823986,4.0388,1803.0,1802.9,0.5771349]
[1680457824584,3.2078,1803.0,1802.9,0.5771349]
[1680457825185,3.20119134,1803.0,1802.9,0.5771349]
[1680457825388,3.20119134,1803.0,1802.8,0.5771349]
[1680457830789,1.656,1802.9,1802.8,0.5771349]
[1680457831097,3.3600181,1802.9,1802.4,0.5771349]
[1680457831394,0.832,1802.5,1802.4,0.5771349]
[1680457832089,4.0378,1802.7,1802.4,0.5771349]
[1680457833190,4.0378,1802.7,1802.3,2.81621233]
[1680457833493,4.0378,1802.7,1802.3,1.95082622]
[1680457833993,4.0378,1802.7,1802.3,1.4061349]
[1680457836291,4.0378,1802.7,1802.3,0.829]
[1680457836489,1.39555506,1802.6,1802.3,0.829]
[1680457836688,0.39555506,1802.6,1802.3,0.829]
[1680457836992,4.0378,1802.7,1802.3,0.829]
[1680457837294,0.831,1802.6,1802.2,3.64822948]
[1680457837793,1.831,1802.6,1802.2,3.64822948]
[1680457837991,0.831,1802.6,1802.2,3.64822948]
[1680457845488,3.2078,1802.5,1802.2,3.64822948]
[1680457845688,3.2078,1802.5,1802.2,3.07109458]
[1680457846496,0.39566104,1802.4,1802.2,3.07109458]
[1680457849001,1.22066104,1802.4,1802.2,2.24309458]
[1680457849191,1.22066104,1802.4,1802.2,0.5771349]
[1680457849393,1.22066104,1802.4,1802.2,1.5771349]
[1680457849599,1.22066104,1802.4,1802.2,0.5771349]
[1680457850797,1.22066104,1802.4,1802.2,1.5771349]
[1680457851098,0.39566104,1802.4,1802.3,0.831]
[1680457851997,0.39566104,1802.4,1802.2,1.5771349]
[1680457852306,0.39566104,1802.4,1802.2,0.5771349]
[1680457854101,0.825,1802.8,1802.3,5.6129349]
[1680457854301,0.825,1802.8,1802.4,1.0]
[1680457855107,3.2078,1802.9,1802.6,0.827]
[1680457861714,0.34529755,1802.8,1802.6,0.827]
[1680457863106,0.34529755,1802.8,1802.6,1.4041349]
[1680457865912,0.34529755,1802.8,1802.7,1.4091349]
[1680457866110,0.34529755,1802.8,1802.7,4.6169349]
[1680457866326,0.34529755,1802.8,1802.7,1.4091349]
[1680457866505,0.16602579,1802.8,1802.7,1.4091349]
[1680457868915,0.16602579,1802.8,1802.7,0.5771349]
[1680457869115,1.5785873,1802.8,1802.7,0.5771349]
[1680457869313,1.5785873,1802.8,1802.6,0.5771349]
[1680457869314,1.87004389,1802.8,1802.6,0.5771349]
[1680457869521,0.58095368,1802.7,1802.5,1.44252101]
[1680457869821,1.58095368,1802.7,1802.5,1.44252101]
[1680457871024,1.58095368,1802.7,1802.6,0.5771349]
[1680457872126,2.41295368,1802.7,1802.6,0.5771349]
[1680457873822,1.41295368,1802.7,1802.6,0.5771349]
[1680457875219,1.7040181,1802.7,1802.6,0.86538611]
[1680457879132,5.7428181,1802.7,1802.6,0.57774214]
[1680457879325,5.8708,1802.7,1802.6,0.57774214]
[1680457880421,5.0388,1802.7,1802.6,0.57774214]
[1680457880617,6.2021048,1802.7,1802.6,0.57774214]
[1680457881324,6.2021048,1802.7,1802.5,1.44312825]
[1680457881531,1.70453173,1802.6,1802.5,0.86538611]
[1680457881730,2.70453173,1802.6,1802.5,0.86538611]
[1680457882032,3.53553173,1802.6,1802.5,0.86538611]
[1680457882425,3.53553173,1802.6,1802.5,1.44324237]
[1680457883723,3.53553173,1802.6,1802.5,0.57785626]
[1680457884028,2.53553173,1802.6,1802.5,0.57785626]
[1680457892037,1.70453173,1802.6,1802.5,0.57785626]
[1680457894142,0.87253173,1802.6,1802.5,0.57785626]
[1680457894437,1.45403897,1802.6,1802.5,1.44324237]
[1680457894638,0.58150724,1802.6,1802.5,0.86538611]
[1680457896442,0.93261796,1802.6,1802.5,0.86538611]
[1680457897343,0.93261796,1802.6,1802.5,1.44303488]
[1680457897644,0.93261796,1802.6,1802.5,0.86538611]
[1680457912959,1.93261796,1802.6,1802.5,0.86538611]
[1680457913357,2.76461796,1802.6,1802.5,0.86538611]
[1680457913850,3.05564245,1802.6,1802.5,0.86538611]
[1680457914153,2.05564245,1802.6,1802.5,0.86538611]
[1680457916757,1.22364245,1802.6,1802.5,0.86538611]
[1680457917461,1.80546105,1802.6,1802.4,5.18773966]
[1680457919666,0.5818186,1802.5,1802.4,5.18773966]
[1680457919961,0.93317877,1802.5,1802.4,5.18773966]
[1680457920155,0.35136017,1802.5,1802.4,5.18773966]
[1680457920355,0.93317877,1802.5,1802.4,5.18773966]
[1680457920560,0.35136017,1802.5,1802.4,5.18773966]
[1680457921956,0.93317877,1802.5,1802.4,5.18773966]
[1680457922566,0.35136017,1802.5,1802.4,5.18773966]
[1680457922766,0.93317877,1802.5,1802.4,5.18773966]
[1680457931871,0.92792638,1802.5,1802.4,5.18773966]
[1680457932170,0.92792638,1802.5,1802.4,1.97993966]
[1680457933073,0.92792638,1802.5,1802.4,1.97793966]
[1680457937678,0.92792638,1802.5,1802.4,0.824]
[1680457938576,0.92792638,1802.5,1802.4,1.981113]
[1680457939686,0.92792638,1802.5,1802.4,0.824]
[1680457940983,0.92792638,1802.5,1802.4,1.9810765]
[1680457941585,0.92792638,1802.5,1802.4,0.824]
[1680457942085,0.92792638,1802.5,1802.3,2.27783687]
[1680457949391,0.92792638,1802.5,1802.4,3.2078]
[1680457949685,0.92792638,1802.5,1802.4,4.65863687]
[1680457950484,1.80077525,1802.5,1802.4,1.15722844]
[1680457950790,6.58728795,1802.5,1802.1,1.44688298]
[1680457950980,0.831,1802.2,1802.0,2.60454393]
[1680457951186,1.40775609,1802.1,1802.0,1.15766095]
[1680457952083,2.40775609,1802.1,1801.9,1.15766095]
[1680457952980,2.40775609,1802.1,1801.8,4.36546095]
[1680457953379,1.0,1802.0,1801.8,1.15766095]
[1680457954692,5.61555609,1802.1,1801.8,1.15766095]
[1680457954889,5.0338,1802.1,1801.7,1.15766095]
[1680457955787,1.0,1802.0,1801.7,1.15766095]
[1680457956492,0.68297131,1801.9,1801.7,1.15766095]
[1680457957888,0.68297131,1801.9,1801.8,0.825]
[1680457958286,3.2078,1802.1,1801.8,0.825]
[1680457958790,3.2078,1802.1,1801.8,0.82010803]
[1680457964797,1.825,1802.0,1801.6,5.19146095]
[1680457968698,4.0318,1802.1,1801.8,0.832]
[1680457971192,0.67897735,1802.0,1801.8,0.832]
[1680457971994,0.67897735,1802.0,1801.9,0.827]
[1680457976403,1.831,1802.2,1801.9,0.827]
[1680457980007,0.831,1802.2,1801.9,0.827]
[1680457982008,0.832,1802.1,1801.8,4.0378]
[1680457986311,0.6791528,1802.0,1801.8,0.83]
[1680457990700,0.6791528,1802.0,1801.8,1.98766095]
[1680457992009,1.5101528,1802.0,1801.8,1.15766095]
[1680457993607,1.658,1801.9,1801.7,1.15766095]
[1680457993802,0.831,1801.8,1801.7,1.15766095]
[1680457994212,0.831,1801.8,1801.6,4.65468298]
[1680457994213,1.831,1801.8,1801.6,4.36546095]
[1680457994415,0.826,1801.7,1801.6,4.36546095]
[1680457994809,0.826,1801.7,1801.6,4.65468298]
[1680457995007,0.826,1801.7,1801.6,15.16284354]
[1680457995817,0.826,1801.7,1801.6,4.65468298]
[1680457996013,1.58553747,1801.7,1801.6,4.65468298]
[1680457997115,1.58553747,1801.7,1801.6,15.16297617]
[1680457997706,1.58553747,1801.7,1801.6,4.65468298]
[1680457999512,1.58553747,1801.7,1801.6,1.44688298]
[1680457999713,1.58553747,1801.7,1801.5,1.44688298]
[1680458000506,0.829,1801.6,1801.5,1.44688298]
[1680458001419,1.59831966,1801.6,1801.5,1.44688298]
[1680458002124,0.76931966,1801.6,1801.5,1.44688298]
[1680458002618,0.831,1801.7,1801.4,6.32734795]
[1680458002818,0.831,1801.7,1801.6,1.15722806]
[1680458005923,0.831,1801.7,1801.5,1.15722806]
[1680458007629,0.831,1801.7,1801.6,1.15722806]
[1680458008518,0.831,1801.7,1801.5,1.15722806]
[1680458010928,0.831,1801.7,1801.6,0.86747237]
[1680458012029,1.825,1801.8,1801.6,0.86747237]
[1680458012223,0.825,1801.8,1801.6,0.86747237]
[1680458013926,1.825,1801.8,1801.6,0.86747237]
[1680458014619,0.825,1801.8,1801.6,0.86747237]
[1680458014818,1.40675609,1801.9,1801.6,4.90327237]
[1680458015131,1.40675609,1801.9,1801.7,0.86747237]
[1680458015326,0.825,1801.9,1801.7,0.86747237]
[1680458016420,0.78871194,1801.8,1801.7,0.86747237]
[1680458016626,0.825,1801.9,1801.7,0.86747237]
[1680458018725,0.825,1801.9,1801.8,0.86747237]
[1680458023229,1.41175609,1802.0,1801.8,0.86747237]
[1680458029927,2.41175609,1802.0,1801.8,0.86747237]
[1680458030837,3.28439023,1802.0,1801.8,0.86747237]
[1680458031036,2.41175609,1802.0,1801.8,0.86747237]
[1680458031235,3.28439023,1802.0,1801.8,0.86747237]
[1680458031530,0.59673582,1801.9,1801.8,0.86747237]
[1680458031736,1.59673582,1801.9,1801.8,0.86747237]
[1680458032035,0.59673582,1801.9,1801.8,0.86747237]
[1680458032738,0.59452367,1801.9,1801.8,0.86747237]
[1680458033839,1.17627976,1801.9,1801.8,0.86747237]
[1680458039538,1.17627976,1801.9,1801.7,1.15722806]
[1680458039729,3.0489139,1801.9,1801.8,0.86832943]
[1680458040343,6.49995781,1801.9,1801.8,0.86832943]
[1680458043446,5.49995781,1801.9,1801.7,0.86832943]
[1680458043743,2.40888361,1801.8,1801.7,0.86832943]
[1680458043944,1.40888361,1801.8,1801.7,0.86832943]
[1680458044141,2.09641576,1801.8,1801.7,0.86832943]
[1680458048244,2.09641576,1801.8,1801.6,1.15722806]
[1680458048938,2.09641576,1801.8,1801.7,0.86843355]
[1680458049140,2.09641576,1801.8,1801.6,1.15722806]
[1680458049742,2.09641576,1801.8,1801.7,0.86844099]
[1680458052243,2.09641576,1801.8,1801.6,1.15722806]
[1680458052946,2.09641576,1801.8,1801.7,1.15722806]
[1680458054248,1.26941576,1801.8,1801.7,1.15722806]
[1680458062257,1.26941576,1801.8,1801.7,1.98722806]
[1680458062946,1.26941576,1801.8,1801.7,2.98722806]
[1680458064147,0.68753215,1801.8,1801.7,2.98722806]
[1680458064349,1.45451775,1801.9,1801.7,2.98722806]
[1680458064553,1.45451775,1801.9,1801.8,4.07623911]
[1680458064854,0.58188361,1801.9,1801.8,4.07623911]
[1680458065256,0.58188361,1801.9,1801.8,4.36502806]
[1680458069064,0.58188361,1801.9,1801.8,1.15722806]
[1680458073368,0.58188361,1801.9,1801.8,0.86857061]
[1680458073369,1.45451775,1801.9,1801.8,0.86857061]
[1680458073968,0.87263414,1801.9,1801.8,0.86857061]
[1680458076269,4.08043414,1801.9,1801.8,0.86857061]
[1680458076469,4.57733279,1801.9,1801.8,0.86857061]
[1680458077373,1.36953279,1801.9,1801.8,0.86857061]
[1680458077574,1.95155124,1801.9,1801.7,1.15722806]
[1680458077774,0.58201845,1801.8,1801.7,1.15722806]
[1680458079975,2.41201845,1801.8,1801.7,1.15722806]
[1680458080175,1.83,1801.8,1801.7,0.86896279]
[1680458080375,2.99348364,1801.8,1801.7,1.44828663]
[1680458080876,1.99348364,1801.8,1801.7,1.44828663]
[1680458081279,0.83,1801.8,1801.7,0.57932384]
[1680458082977,1.70299636,1801.8,1801.7,1.44828663]
[1680458083376,1.70299636,1801.8,1801.7,0.57932384]
[1680458084682,0.83,1801.8,1801.7,0.57932384]
[1680458084883,1.70291928,1801.8,1801.7,0.57932384]
[1680458085082,0.83,1801.8,1801.7,0.57932384]
[1680458085477,1.7028198,1801.8,1801.7,0.57932384]
[1680458091390,2.37190124,1801.8,1801.7,0.57932384]
[1680458095489,0.66908144,1801.8,1801.7,0.832]
[1680458095693,0.58165169,1801.9,1801.7,1.98922806]
[1680458095896,0.58165169,1801.9,1801.8,0.86808704]
[1680458096296,0.58165169,1801.9,1801.8,1.86808704]
[1680458097599,0.58165169,1801.9,1801.8,0.86808704]
[1680458104004,1.45429364,1802.1,1801.8,7.0641151]
[1680458104204,0.58147384,1802.2,1802.0,6.05914049]
[1680458104503,0.58147384,1802.2,1802.1,1.69946714]
[1680458104708,0.58147384,1802.2,1802.1,2.69946714]
[1680458105098,0.58147384,1802.2,1802.1,1.69946714]
[1680458106104,0.80594108,1802.2,1802.1,1.69946714]
[1680458106308,0.22446724,1802.2,1802.1,1.40989705]
[1680458111407,0.22446724,1802.2,1802.1,0.832]
[1680458111909,0.22446724,1802.2,1802.1,1.40989705]
[1680458112110,0.22446724,1802.2,1802.1,0.57789705]
[1680458113600,0.22446724,1802.2,1802.0,1.40989705]
[1680458113802,3.78927384,1802.3,1802.0,1.40989705]
[1680458114109,0.25160788,1802.1,1802.0,1.40989705]
[1680458114406,1.0,1802.2,1802.0,1.40989705]
[1680458115306,1.824,1802.2,1802.0,0.57789705]
[1680458115512,2.40547384,1802.2,1801.9,1.40889705]
[1680458117212,2.40547384,1802.2,1801.9,0.831]
[1680458119415,1.40547384,1802.2,1801.9,0.831]
[1680458120215,1.40547384,1802.2,1801.9,1.40889705]
[1680458121724,1.40547384,1802.2,1801.9,0.831]
[1680458122222,1.40547384,1802.2,1801.9,1.40889705]
[1680458123715,1.40547384,1802.2,1801.9,0.831]
[1680458124018,1.40547384,1802.2,1801.9,1.40889705]
[1680458125025,0.35371321,1802.1,1801.9,1.40889705]
[1680458125216,0.35371321,1802.1,1801.9,0.831]
[1680458126724,3.56151321,1802.1,1801.9,0.831]
[1680458130030,4.14298705,1802.1,1801.9,0.831]
[1680458131535,0.35371321,1802.1,1802.0,0.826]
[1680458131740,0.35371321,1802.1,1802.0,4.61169705]
[1680458132040,0.58147384,1802.3,1802.0,5.44369705]
[1680458132242,1.45429364,1802.3,1802.1,0.826]
[1680458132741,1.45429364,1802.3,1801.9,0.57789705]
[1680458132742,4.9126198,1802.2,1801.9,0.57789705]
[1680458132940,1.70315491,1802.0,1801.6,1.40389705]
[1680458133136,0.58081825,1801.9,1801.6,1.40389705]
[1680458133550,1.0,1801.9,1801.7,0.57789705]
[1680458133845,1.41281825,1802.0,1801.7,0.57789705]
[1680458133846,2.41281825,1802.0,1801.7,0.57789705]
[1680458134341,1.41281825,1802.0,1801.7,0.57789705]
[1680458134841,1.96096396,1802.0,1801.7,0.57789705]
[1680458135338,3.83211887,1802.0,1801.7,0.57789705]
[1680458135542,3.78861825,1801.9,1801.6,2.27136419]
[1680458135734,3.78861825,1801.9,1801.6,1.40389705]
[1680458136337,4.65977316,1801.9,1801.6,1.40389705]
[1680458138345,0.58081825,1801.8,1801.6,2.27136419]
[1680458138547,0.58081825,1801.8,1801.6,1.40389705]
[1680458139945,0.42799667,1801.7,1801.6,1.40389705]
[1680458142147,0.42799667,1801.7,1801.6,0.57789705]
[1680458146650,5.49177316,1801.9,1801.6,0.57789705]
[1680458148150,4.62061825,1801.9,1801.6,0.57789705]
[1680458150349,1.0,1801.8,1801.4,1.15676599]
[1680458150650,1.0,1801.8,1801.2,0.577478]
[1680458150651,5.44761825,1801.5,1801.2,0.577478]
[1680458150849,4.0378,1801.3,1801.2,0.577478]
[1680458152048,4.0388,1801.3,1801.2,0.577478]
[1680458152555,4.0388,1801.3,1801.1,0.577478]
[1680458155151,0.76711135,1801.2,1801.1,0.577478]
[1680458157656,0.76711135,1801.2,1801.0,1.44369501]
[1680458158252,0.76711135,1801.2,1801.0,0.577478]
[1680458159158,0.76711135,1801.2,1801.0,2.44369501]
[1680458159358,0.831,1801.3,1801.0,1.44369501]
[1680458159857,0.7625157,1801.2,1801.0,1.44369501]
[1680458160256,0.7625157,1801.2,1801.0,0.577478]
[1680458164452,0.7625157,1801.2,1801.0,1.687478]
[1680458164862,4.89861825,1801.5,1801.0,1.687478]
[1680458166663,4.3178,1801.5,1801.0,1.687478]
[1680458170061,0.76286375,1801.4,1801.0,1.687478]
[1680458171964,0.76286375,1801.4,1801.1,0.577478]
[1680458172169,0.76286375,1801.4,1801.2,0.577478]
[1680458172365,0.76286375,1801.4,1801.1,2.687478]
[1680458173373,0.76286375,1801.4,1801.2,0.577478]
[1680458176564,0.76286375,1801.4,1801.2,1.44369501]
[1680458177472,0.76286375,1801.4,1801.3,0.577478]
[1680458179369,0.58081825,1801.6,1801.3,4.889278]